fUSD/lending_fUSD_20240517
["ID","MTS","AMOUNT","RATE_DAILY","PERIOD"]
[327265381,1715950243747,-500.0,0.00012328,2]
[327265383,1715950243756,-500.0,0.00012328,2]
[327265385,1715950243766,-500.0,0.00012328,2]
[327265387,1715950243775,-151.0,0.00012328,2]
[327265389,1715950243786,-500.0,0.00012328,2]
[327265391,1715950243795,-500.0,0.00012328,2]
[327265394,1715950243804,-83.77922127,0.00012328,2]
[327265396,1715950243818,-416.22077873,0.00012328,2]
[327265398,1715950243827,-500.0,0.00012328,2]
[327265403,1715950243999,-500.0,0.00012328,2]
[327265404,1715950244009,-500.0,0.00012328,2]
[327265405,1715950244020,-505.89,0.00012328,2]
[327265406,1715950244029,-500.0,0.00012328,2]
[327265407,1715950244039,-500.0,0.00012328,2]
[327265408,1715950244049,-500.0,0.00012328,2]
[327265409,1715950244058,-491.5,0.00012328,2]
[327265410,1715950244069,-569.47,0.00012328,2]
[327265411,1715950244079,-329.26,0.00012328,2]
[327265412,1715950244088,-500.0,0.00012328,2]
[327265413,1715950244097,-500.0,0.00012328,2]
[327265414,1715950244107,-500.0,0.00012328,2]
[327265415,1715950244117,-500.0,0.00012328,2]
[327265416,1715950244127,-357.55,0.00012328,2]
[327265417,1715950244136,-500.0,0.00012328,2]
[327265418,1715950244146,-500.0,0.00012328,2]
[327265419,1715950244156,-169.10928245,0.00012451,2]
[327265420,1715950244165,-500.0,0.0001254,2]
[327265421,1715950244175,-500.0,0.0001254,2]
[327265422,1715950244185,-24646.96498353,0.00012541,2]
[327265423,1715950244194,-151.0,0.00012541,2]
[327265424,1715950244205,-171.535049,0.00012541,2]
[327265425,1715950244215,-171.535049,0.00012541,2]
[327265426,1715950244224,-151.0,0.00012541,2]
[327265427,1715950244234,-151.0,0.00012541,2]
[327265428,1715950244244,-151.0,0.00012541,2]
[327265429,1715950244254,-284.082968,0.00012541,2]
[327265430,1715950244264,-151.0,0.00012541,2]
[327265431,1715950244275,-151.0,0.00012541,2]
[327265432,1715950244285,-151.0,0.00012541,2]
[327265433,1715950244295,-151.0,0.00012541,2]
[327265434,1715950244305,-151.0,0.00012541,2]
[327265435,1715950244315,-151.0,0.00012541,2]
[327265436,1715950244326,-151.0,0.00012541,2]
[327265437,1715950244336,-152.918596,0.00012541,2]
[327265438,1715950244347,-151.0,0.00012541,2]
[327265439,1715950244357,-151.0,0.00012541,2]
[327265440,1715950244366,-151.0,0.00012541,2]
[327265441,1715950244376,-151.0,0.00012541,2]
[327265442,1715950244385,-151.0,0.00012541,2]
[327265443,1715950244395,-151.0,0.00012541,2]
[327265444,1715950244405,-151.0,0.00012541,2]
[327265445,1715950244416,-439.96,0.00012581,2]
[327265446,1715950244427,-294.38987776,0.00012595,2]
[327265447,1715950244436,-2000.0,0.00012595,2]
[327265448,1715950244449,-200.0,0.00012595,2]
[327265449,1715950244463,-151.0,0.00012595,2]
[327265450,1715950244473,-151.0,0.00012595,2]
[327265451,1715950244483,-161.933908,0.00012595,2]
[327265452,1715950244494,-500.0,0.00012599,2]
[327265453,1715950244503,-500.0,0.00012599,2]
[327265454,1715950244513,-500.0,0.00012599,2]
[327265455,1715950244523,-500.0,0.00012599,2]
[327265456,1715950244536,-500.0,0.00012599,2]
[327265457,1715950244546,-549.66,0.00012599,2]
[327265458,1715950244556,-500.0,0.00012599,2]
[327265459,1715950244568,-500.0,0.00012599,2]
[327265460,1715950244578,-617.71,0.00012599,2]
[327265461,1715950244587,-500.0,0.00012599,2]
[327265462,1715950244596,-500.0,0.00012599,2]
[327265463,1715950244605,-500.0,0.00012599,2]
[327265464,1715950244615,-500.0,0.00012599,2]
[327265465,1715950244625,-500.0,0.00012599,2]
[327265466,1715950244635,-500.0,0.00012599,2]
[327265467,1715950244646,-500.0,0.00012599,2]
[327265468,1715950244655,-500.0,0.00012599,2]
[327265469,1715950244665,-500.0,0.00012599,2]
[327265470,1715950244675,-500.0,0.00012599,2]
[327265471,1715950244684,-500.0,0.00012599,2]
[327265472,1715950244695,-525.92,0.00012599,2]
[327265473,1715950244704,-500.0,0.00012599,2]
[327265474,1715950244714,-500.0,0.00012599,2]
[327265475,1715950244723,-4984.84,0.00012599,2]
[327265476,1715950244733,-500.0,0.00012599,2]
[327265477,1715950244743,-500.0,0.00012599,2]
[327265478,1715950244752,-500.0,0.00012599,2]
[327265479,1715950244762,-500.0,0.00012599,2]
[327265480,1715950244771,-500.0,0.00012599,2]
[327265481,1715950244781,-500.0,0.00012599,2]
[327265482,1715950244790,-500.0,0.00012599,2]
[327265483,1715950244800,-500.0,0.00012599,2]
[327265484,1715950244810,-500.0,0.00012599,2]
[327265485,1715950244821,-500.0,0.00012599,2]
[327265486,1715950244830,-500.0,0.00012599,2]
[327265487,1715950244840,-500.0,0.00012599,2]
[327265488,1715950244849,-500.0,0.00012599,2]
[327265489,1715950244858,-505.89,0.00012599,2]
[327265490,1715950244868,-500.0,0.00012599,2]
[327265491,1715950244878,-500.0,0.00012599,2]
[327265492,1715950244889,-18159.20779547,0.000126,2]
[327265493,1715950244899,-151.0,0.000126,2]
[327265494,1715950244909,-151.0,0.000126,2]
[327265495,1715950244919,-151.0,0.000126,2]
[327265496,1715950244929,-151.0,0.000126,2]
[327265497,1715950244940,-153.307338,0.000126,2]
[327265498,1715950244949,-151.0,0.000126,2]
[327265499,1715950244959,-151.0,0.000126,2]
[327265500,1715950244968,-161.2406669,0.000126,2]
[327265501,1715950244979,-4895.0,0.00012603,2]
[327265502,1715950244988,-377.94206256,0.00012614,2]
[327265503,1715950244998,-151.0,0.00012614,2]
[327265504,1715950245008,-200.0,0.00012634,2]
[327265505,1715950245017,-200.0,0.0001264,2]
[327265506,1715950245027,-1000.0,0.0001264,2]
[327265507,1715950245036,-500.0,0.0001264,2]
[327265508,1715950245047,-500.0,0.00012653,2]
[327265509,1715950245058,-500.0,0.00012653,2]
[327265510,1715950245068,-500.0,0.00012653,2]
[327265511,1715950245077,-1435.32,0.00012653,2]
[327265512,1715950245086,-480.87,0.00012653,2]
[327265513,1715950245096,-500.0,0.00012653,2]
[327265514,1715950245105,-500.0,0.00012653,2]
[327265515,1715950245115,-500.0,0.00012653,2]
[327265516,1715950245124,-500.0,0.00012653,2]
[327265517,1715950245134,-410.02789162,0.00012653,2]
[327265518,1715950245162,-89.97210838,0.00012653,2]
[327265519,1715950245171,-527.27,0.00012653,2]
[327265520,1715950245181,-500.0,0.00012653,2]
[327265521,1715950245190,-500.0,0.00012653,2]
[327265522,1715950245200,-137.18040564,0.00012653,2]
[327265523,1715950245211,-362.81959436,0.00012653,2]
[327265524,1715950245221,-500.0,0.00012653,2]
[327265525,1715950245230,-500.0,0.00012653,2]
[327265526,1715950245239,-865.66,0.00012653,2]
[327265527,1715950245249,-500.0,0.00012653,2]
[327265528,1715950245260,-500.0,0.00012653,2]
[327265529,1715950245270,-500.0,0.00012653,2]
[327265530,1715950245280,-500.0,0.00012653,2]
[327265531,1715950245290,-3911.39,0.00012653,2]
[327265532,1715950245299,-500.0,0.00012653,2]
[327265533,1715950245309,-500.0,0.00012653,2]
[327265534,1715950245320,-499.38,0.00012653,2]
[327265535,1715950245330,-500.0,0.00012653,2]
[327265536,1715950245339,-796.59,0.00012653,2]
[327265537,1715950245348,-500.0,0.00012653,2]
[327265538,1715950245358,-500.0,0.00012653,2]
[327265539,1715950245368,-500.0,0.00012653,2]
[327265540,1715950245377,-636.52,0.00012653,2]
[327265541,1715950245387,-500.0,0.00012653,2]
[327265542,1715950245398,-500.0,0.00012653,2]
[327265543,1715950245408,-500.0,0.00012653,2]
[327265544,1715950245417,-500.0,0.00012653,2]
[327265545,1715950245428,-500.0,0.00012653,2]
[327265546,1715950245438,-500.0,0.00012653,2]
[327265547,1715950245449,-500.0,0.00012653,2]
[327265548,1715950245463,-500.0,0.00012653,2]
[327265549,1715950245473,-500.0,0.00012653,2]
[327265550,1715950245482,-500.0,0.00012653,2]
[327265551,1715950245494,-151.0,0.00012654,2]
[327265552,1715950245503,-151.0,0.00012654,2]
[327265553,1715950245512,-152.10606,0.00012654,2]
[327265554,1715950245522,-151.0,0.00012654,2]
[327265555,1715950245536,-151.0,0.00012654,2]
[327265556,1715950245545,-151.0,0.00012654,2]
[327265557,1715950245557,-151.0,0.00012654,2]
[327265558,1715950245569,-219.597814,0.00012654,2]
[327265559,1715950245579,-175.411443,0.00012654,2]
[327265560,1715950245589,-151.0,0.00012654,2]
[327265561,1715950245598,-170.325568,0.00012654,2]
[327265562,1715950245607,-151.0,0.00012654,2]
[327265563,1715950245616,-151.0,0.00012654,2]
[327265564,1715950245626,-151.0,0.00012654,2]
[327265565,1715950245636,-151.0,0.00012654,2]
[327265566,1715950245647,-151.0,0.00012654,2]
[327265567,1715950245656,-151.0,0.00012654,2]
[327265568,1715950245665,-154.416085,0.00012654,2]
[327265569,1715950245675,-151.0,0.00012654,2]
[327265570,1715950245685,-151.0,0.00012654,2]
[327265571,1715950245694,-151.0,0.00012654,2]
[327265572,1715950245703,-500.0,0.00012655,2]
[327265573,1715950245712,-500.0,0.00012663,2]
[327265574,1715950245722,-566.99,0.00012663,2]
[327265575,1715950245732,-328.69,0.00012663,2]
[327265576,1715950245741,-500.0,0.00012663,2]
[327265577,1715950245751,-176.22,0.00012663,2]
[327265578,1715950245760,-500.0,0.00012663,2]
[327265579,1715950245770,-500.0,0.00012663,2]
[327265580,1715950245780,-500.0,0.00012663,2]
[327265581,1715950245789,-1070.282261,0.00012664,2]
[327265582,1715950245798,-3783.710551,0.00012664,2]
[327265583,1715950245808,-584.444202,0.00012664,2]
[327265584,1715950245819,-252.27923315,0.0001267,2]
[327265585,1715950245829,-169.10928245,0.00012675,2]
[327265586,1715950245838,-500.0,0.00012695,2]
[327265587,1715950245847,-500.0,0.00012695,2]
[327265588,1715950245857,-500.0,0.00012695,2]
[327265589,1715950245867,-500.0,0.00012695,2]
[327265590,1715950245876,-577.84,0.00012695,2]
[327265591,1715950245886,-500.0,0.00012695,2]
[327265593,1715950245896,-500.0,0.00012695,2]
[327265594,1715950245905,-500.0,0.00012695,2]
[327265595,1715950245915,-272.7,0.00012695,2]
[327265596,1715950245924,-500.0,0.00012695,2]
[327265597,1715950245933,-500.0,0.00012695,2]
[327265598,1715950245943,-500.0,0.00012695,2]
[327265599,1715950245952,-500.0,0.00012695,2]
[327265600,1715950245961,-500.0,0.00012695,2]
[327265601,1715950245971,-600.58,0.00012695,2]
[327265602,1715950245981,-568.58,0.00012695,2]
[327265603,1715950245990,-348.2530013,0.00012695,2]
[327265604,1715950245999,-500.0,0.00012695,2]
[327265605,1715950246008,-347.54,0.00012695,2]
[327265606,1715950246018,-151.0,0.00012695,2]
[327265607,1715950246028,-500.0,0.00012695,2]
[327265608,1715950246038,-171.535049,0.00012695,2]
[327265609,1715950246047,-171.535049,0.00012695,2]
[327265611,1715950246057,-500.0,0.00012695,2]
[327265613,1715950246066,-151.0,0.00012695,2]
[327265615,1715950246077,-151.0,0.00012695,2]
[327265616,1715950246086,-500.0,0.00012695,2]
[327265617,1715950246096,-151.0,0.00012695,2]
[327265618,1715950246105,-151.0,0.00012695,2]
[327265619,1715950246114,-151.0,0.00012695,2]
[327265620,1715950246125,-151.0,0.00012695,2]
[327265621,1715950246134,-151.0,0.00012695,2]
[327265622,1715950246143,-151.0,0.00012695,2]
[327265623,1715950246153,-289.546139,0.00012695,2]
[327265624,1715950246163,-500.0,0.00012695,2]
[327265625,1715950246174,-537.46,0.00012695,2]
[327265626,1715950246183,-151.0,0.00012695,2]
[327265627,1715950246193,-151.0,0.00012695,2]
[327265628,1715950246202,-151.0,0.00012695,2]
[327265629,1715950246212,-151.0,0.00012695,2]
[327265630,1715950246221,-155.209002,0.00012695,2]
[327265631,1715950246231,-151.0,0.00012695,2]
[327265632,1715950246240,-151.0,0.00012695,2]
[327265633,1715950246249,-151.0,0.00012695,2]
[327265634,1715950246259,-500.0,0.00012695,2]
[327265635,1715950246268,-500.0,0.00012696,2]
[327265636,1715950246277,-500.0,0.00012696,2]
[327265637,1715950246287,-151.0,0.00012698,2]
[327265638,1715950246297,-151.0,0.00012698,2]
[327265639,1715950246306,-500.0,0.00012698,2]
[327265640,1715950246316,-500.0,0.00012698,2]
[327265641,1715950246328,-500.0,0.00012698,2]
[327265642,1715950246338,-500.0,0.00012698,2]
[327265643,1715950246349,-500.0,0.00012698,2]
[327265644,1715950246402,-500.0,0.00012698,2]
[327265645,1715950246412,-500.0,0.00012698,2]
[327265646,1715950246421,-500.0,0.00012698,2]
[327265647,1715950246430,-297.0,0.00012698,2]
[327265648,1715950246439,-500.0,0.00012698,2]
[327265649,1715950246452,-500.0,0.00012698,2]
[327265650,1715950246464,-216.92928353,0.00012698,2]
[327265651,1715950246475,-500.0,0.00012698,2]
[327265652,1715950246484,-500.0,0.00012698,2]
[327265653,1715950246495,-327.59,0.00012698,2]
[327265654,1715950246504,-849.15,0.00012698,2]
[327265655,1715950246513,-255.503,0.00012698,2]
[327265656,1715950246522,-973.0,0.00012698,2]
[327265657,1715950246534,-1225.0,0.00012698,2]
[327265658,1715950246544,-1262.0,0.00012698,2]
[327265659,1715950246553,-1791.0,0.00012698,2]
[327265660,1715950246562,-544.0,0.00012698,2]
[327265661,1715950246574,-1646.0,0.00012698,2]
[327265662,1715950246583,-290.246,0.00012698,2]
[327265663,1715950246594,-215.0,0.00012698,2]
[327265664,1715950246603,-2865.224,0.00012698,2]
[327265665,1715950246611,-1138.0,0.00012698,2]
[327265666,1715950246620,-1464.0,0.00012698,2]
[327265667,1715950246630,-230.43,0.00012698,2]
[327265668,1715950246639,-1060.0,0.00012698,2]
[327265669,1715950246648,-207.143,0.00012698,2]
[327265670,1715950246657,-200.0,0.00012704,2]
[327265671,1715950246666,-1000.0,0.00012704,2]
[327265672,1715950246676,-500.0,0.00012704,2]
[327265673,1715950246686,-200.0,0.00012721,2]
[327265674,1715950246696,-283.0177,0.00012735,2]
[327265675,1715950246705,-151.0,0.0001274,2]
[327265676,1715950246714,-151.0,0.0001274,2]
[327265677,1715950246723,-151.0,0.0001274,2]
[327265678,1715950246732,-151.0,0.0001274,2]
[327265679,1715950246742,-5867.46418463,0.00012741,2]
[327265680,1715950246751,-151.0,0.00012741,2]
[327265681,1715950246760,-151.402527,0.00012741,2]
[327265682,1715950246769,-151.0,0.00012741,2]
[327265683,1715950246778,-151.0,0.00012741,2]
[327265684,1715950246787,-170.325568,0.00012741,2]
[327265685,1715950246796,-151.0,0.00012741,2]
[327265686,1715950246805,-151.0,0.00012741,2]
[327265687,1715950246815,-151.0,0.00012741,2]
[327265688,1715950246826,-151.0,0.00012741,2]
[327265689,1715950246835,-3655.687,0.00012742,2]
[327265690,1715950246844,-4857.55209428,0.00012742,2]
[327265691,1715950246858,-2770.52907163,0.00012742,2]
[327265692,1715950246867,-97.90434529,0.00012742,2]
[327265693,1715950246878,-53.47709671,0.00012742,2]
[327265695,1715950246888,-151.0,0.00012742,2]
[327265697,1715950246897,-151.0,0.00012742,2]
[327265698,1715950246906,-151.0,0.00012742,2]
[327265699,1715950246915,-141.45590754,0.00012742,2]
[327265700,1715950246926,-9.54409246,0.00012742,2]
[327265701,1715950246935,-251.138986,0.00012742,2]
[327265702,1715950246945,-151.0,0.00012754,2]
[327265703,1715950246954,-154.145093,0.00012754,2]
[327265704,1715950246963,-200.0,0.00012766,2]
[327265705,1715950246972,-593.95732855,0.00012766,2]
[327265706,1715950246983,-267.80008024,0.00012766,2]
[327265707,1715950246994,-138.24259121,0.00012766,2]
[327265708,1715950247003,-200.0,0.00012766,2]
[327265709,1715950247012,-75.32652228,0.00012766,2]
[327265710,1715950247026,-424.67347772,0.00012766,2]
[327265711,1715950247036,-575.58189116,0.00012779,2]
[327265712,1715950247065,-151.0,0.00012328,2]
[327265713,1715950247076,-3089.95510884,0.00012779,2]
[327265714,1715950247086,-4809.68445175,0.00012797,2]
[327265715,1715950247095,-155.13113355,0.00012798,2]
[327265716,1715950247104,-10536.60312062,0.00012798,2]
[327265717,1715950247113,-596.96656947,0.00012798,2]
[327265718,1715950247123,-155.0,0.00012798,2]
[327265719,1715950247132,-410.03425881,0.00012798,2]
[327265720,1715950247141,-12649.23290629,0.00012798,2]
[327265721,1715950247150,-1000.0,0.00012798,2]
[327265722,1715950247160,-8402.6321981,0.00012798,2]
[327265723,1715950247169,-155.0,0.00012798,2]
[327265724,1715950247178,-151.0,0.00012798,2]
[327265725,1715950247188,-211.814947,0.00012798,2]
[327265726,1715950247197,-200.024478,0.00012798,2]
[327265727,1715950247206,-151.0,0.00012798,2]
[327265728,1715950247217,-151.0,0.00012798,2]
[327265729,1715950247227,-151.0,0.00012798,2]
[327265730,1715950247236,-240.301914,0.00012798,2]
[327265731,1715950247246,-151.0,0.00012798,2]
[327265732,1715950247255,-151.0,0.00012798,2]
[327265733,1715950247265,-500.0,0.00012799,2]
[327265734,1715950247274,-500.0,0.00012799,2]
[327265735,1715950247283,-1500.0,0.000128,4]
[327265736,1715950247293,-338.0,0.000128,2]
[327265737,1715950247302,-1500.0,0.000128,2]
[327265738,1715950247311,-1500.0,0.000128,2]
[327265739,1715950247321,-1500.0,0.000128,2]
[327265740,1715950247331,-1500.0,0.000128,2]
[327265741,1715950247341,-1500.0,0.000128,2]
[327265742,1715950247351,-1500.0,0.000128,2]
[327265743,1715950247361,-1643.75,0.000128,2]
[327265744,1715950247371,-1500.0,0.000128,2]
[327265745,1715950247380,-1500.0,0.000128,2]
[327265746,1715950247390,-1500.0,0.000128,2]
[327265747,1715950247400,-151.0,0.000128,2]
[327265748,1715950247410,-151.0,0.000128,2]
[327265749,1715950247420,-171.535049,0.000128,2]
[327265750,1715950247430,-171.535049,0.000128,2]
[327265751,1715950247439,-151.0,0.000128,2]
[327265752,1715950247450,-1022.0,0.000128,2]
[327265753,1715950247463,-1070.282261,0.00012819,2]
[327265754,1715950247472,-3783.710551,0.00012819,2]
[327265755,1715950247482,-584.444202,0.00012819,2]
[327265756,1715950247492,-151.0,0.00012838,2]
[327265757,1715950247502,-500.0,0.00012838,2]
[327265758,1715950247512,-249.896,0.00012839,2]
[327265759,1715950247521,-150.127,0.00012839,2]
[327265760,1715950247532,-249.896,0.00012839,2]
[327265761,1715950247542,-200.0,0.00012848,2]
[327265762,1715950247552,-170.325568,0.00012849,2]
[327265763,1715950247561,-155.281243,0.00012849,2]
[327265764,1715950247572,-151.446026,0.00012849,2]
[327265765,1715950247582,-1000.0,0.00012849,2]
[327265766,1715950247592,-10000.0,0.00012849,2]
[327265767,1715950247602,-196.57,0.00012859,2]
[327265768,1715950247611,-1492.1467047,0.00012868,2]
[327265769,1715950247621,-151.0,0.00012869,2]
[327265770,1715950247631,-151.0,0.00012869,2]
[327265771,1715950247640,-240.313274,0.00012869,2]
[327265772,1715950247650,-151.0,0.00012869,2]
[327265773,1715950247660,-623.28232155,0.00012869,2]
[327265774,1715950247669,-243.8880247,0.00012869,2]
[327265775,1715950247679,-11613.37114612,0.0001287,2]
[327265776,1715950247689,-186.93391276,0.0001287,2]
[327265777,1715950247698,-900.54106739,0.0001287,2]
[327265778,1715950247707,-500.0,0.00012877,2]
[327265779,1715950247717,-166.14,0.00012877,2]
[327265780,1715950247727,-500.0,0.00012877,2]
[327265781,1715950247737,-500.0,0.00012877,2]
[327265782,1715950247746,-500.0,0.00012877,2]
[327265783,1715950247755,-500.0,0.00012877,2]
[327265784,1715950247765,-500.0,0.00012877,2]
[327265785,1715950247774,-617.71,0.00012877,2]
[327265786,1715950247784,-500.0,0.00012877,2]
[327265787,1715950247794,-500.0,0.00012877,2]
[327265788,1715950247804,-500.0,0.00012877,2]
[327265789,1715950247813,-500.0,0.00012877,2]
[327265790,1715950247824,-500.0,0.00012877,2]
[327265791,1715950247833,-500.0,0.00012877,2]
[327265792,1715950247842,-500.0,0.00012877,2]
[327265793,1715950247851,-500.0,0.00012877,2]
[327265794,1715950247860,-500.0,0.00012877,2]
[327265795,1715950247870,-4984.84,0.00012877,2]
[327265796,1715950247879,-500.0,0.00012877,2]
[327265797,1715950247889,-500.0,0.00012877,2]
[327265798,1715950247898,-500.0,0.00012877,2]
[327265799,1715950247908,-500.0,0.00012877,2]
[327265800,1715950247917,-441.28,0.00012877,2]
[327265801,1715950247927,-500.0,0.00012877,2]
[327265802,1715950247936,-199.27,0.00012877,2]
[327265803,1715950247945,-500.0,0.00012877,2]
[327265804,1715950247955,-592.6,0.00012877,2]
[327265805,1715950247965,-150.49,0.00012877,2]
[327265806,1715950247974,-500.0,0.00012877,2]
[327265807,1715950247983,-505.89,0.00012877,2]
[327265808,1715950247992,-500.0,0.00012877,2]
[327265809,1715950248002,-500.0,0.00012878,2]
[327265810,1715950248012,-500.0,0.00012878,2]
[327265811,1715950248022,-447.98,0.00012878,2]
[327265812,1715950248032,-500.0,0.00012878,2]
[327265813,1715950248041,-500.0,0.00012878,2]
[327265814,1715950248051,-500.0,0.00012878,2]
[327265815,1715950248060,-500.0,0.00012878,2]
[327265816,1715950248071,-1435.32,0.00012878,2]
[327265817,1715950248080,-500.0,0.00012878,2]
[327265818,1715950248090,-500.0,0.00012878,2]
[327265819,1715950248099,-500.0,0.00012878,2]
[327265820,1715950248109,-500.0,0.00012878,2]
[327265821,1715950248119,-500.0,0.00012878,2]
[327265822,1715950248128,-500.0,0.00012878,2]
[327265823,1715950248138,-500.0,0.00012878,2]
[327265824,1715950248147,-527.27,0.00012878,2]
[327265825,1715950248156,-500.0,0.00012878,2]
[327265826,1715950248166,-500.0,0.00012878,2]
[327265827,1715950248176,-500.0,0.00012878,2]
[327265828,1715950248185,-500.0,0.00012878,2]
[327265829,1715950248195,-865.66,0.00012878,2]
[327265830,1715950248203,-500.0,0.00012878,2]
[327265831,1715950248213,-500.0,0.00012878,2]
[327265832,1715950248222,-500.0,0.00012878,2]
[327265833,1715950248232,-500.0,0.00012878,2]
[327265834,1715950248242,-500.0,0.00012878,2]
[327265835,1715950248251,-500.0,0.00012878,2]
[327265836,1715950248261,-500.0,0.00012878,2]
[327265837,1715950248271,-537.46,0.00012878,2]
[327265838,1715950248280,-3911.39,0.00012878,2]
[327265839,1715950248290,-500.0,0.00012878,2]
[327265840,1715950248301,-796.59,0.00012878,2]
[327265841,1715950248311,-500.0,0.00012878,2]
[327265842,1715950248323,-636.52,0.00012878,2]
[327265843,1715950248332,-500.0,0.00012878,2]
[327265844,1715950248341,-500.0,0.00012878,2]
[327265845,1715950248351,-500.0,0.00012878,2]
[327265846,1715950248360,-500.0,0.00012878,2]
[327265847,1715950248368,-500.0,0.00012878,2]
[327265848,1715950248378,-182.77321265,0.00012878,2]
[327265849,1715950248388,-500.0,0.00012879,2]
[327265850,1715950248397,-500.0,0.00012879,2]
[327265851,1715950248408,-500.0,0.00012879,2]
[327265852,1715950248418,-500.0,0.00012879,2]
[327265853,1715950248428,-500.0,0.00012879,2]
[327265854,1715950248439,-500.0,0.00012879,2]
[327265855,1715950248452,-500.0,0.00012879,2]
[327265856,1715950248462,-500.0,0.00012879,2]
[327265857,1715950248472,-500.0,0.00012879,2]
[327265858,1715950248482,-572.35,0.00012879,2]
[327265859,1715950248492,-500.0,0.00012879,2]
[327265860,1715950248504,-500.0,0.00012879,2]
[327265861,1715950248514,-849.15,0.00012879,2]
[327265862,1715950248524,-13125.76149016,0.0001288,2]
[327265863,1715950248760,-470.99054999,0.0001288,2]
[327265864,1715950248994,-601.015996,0.00012328,2]
[327265865,1715950249006,-346.11167018,0.00012328,2]
[327265866,1715950249021,-20.83118582,0.00012328,2]
[327265867,1715950249031,-267.27160686,0.00012614,2]
[327265868,1715950249044,-700.68724514,0.00012614,2]
[327265869,1715950249054,-230.44554445,0.00012742,2]
[327265870,1715950249076,-737.51330755,0.00012742,2]
[327265871,1715950249085,-967.958852,0.00012877,2]
[327265872,1715950249095,-4172.65864045,0.0001288,2]
[327265873,1715950249106,-342.12600038,0.0001288,2]
[327265874,1715950249118,-7292.85290267,0.0001288,2]
[327265875,1715950249138,-781.83159,0.0001288,2]
[327265876,1715950249150,-16757.30091643,0.0001288,2]
[327265877,1715950249162,-1324.29662438,0.0001288,2]
[327265878,1715950249243,-5717.8551789,0.0001288,2]
[327265879,1715950249508,-1041.86716506,0.00012075,2]
[327265880,1715950249518,-678.07586255,0.00012328,2]
[327265881,1715950249539,-289.88298945,0.00012328,2]
[327265882,1715950249548,-909.38701055,0.00012595,2]
[327265883,1715950249560,-1836.92959945,0.00012595,2]
[327265884,1715950249572,-967.958852,0.00012614,2]
[327265885,1715950249582,-967.958852,0.00012742,2]
[327265886,1715950249592,-967.958852,0.00012877,2]
[327265887,1715950249601,-1365.6829955,0.0001288,2]
[327265912,1715950769786,339.0,0.0002351,120]
[327265913,1715950798331,683.98843055,0.000235,120]
[327265914,1715950809944,678.0,0.000235,120]
[327265915,1715950816327,678.0,0.000235,120]
[327265916,1715950836904,678.0,0.000235,120]
[327265936,1715951433355,-155.0,9.08e-05,2]
[327265937,1715951433365,-266.24547519,9.081e-05,2]
[327265938,1715951433375,-3060.17009221,9.081e-05,2]
[327265939,1715951433384,-643.21413352,9.082e-05,2]
[327265940,1715951433394,-5272.68896387,9.082e-05,2]
[327265941,1715951433403,-150.0,9.084e-05,2]
[327265942,1715951433412,-150.0,9.084e-05,2]